bitfinex/quotes_SOLUSD_20251103
["timestamp","ask_amount","ask_price","bid_price","bid_amount"]
[1762138844167,3.20006839,183.99,183.95,0.68]
[1762138844363,3.20006839,183.99,183.94,22.22801227]
[1762138844563,3.20006839,184.0,183.95,0.68]
[1762138845081,3.20006839,184.0,183.96,19.02587519]
[1762138845300,20.592,184.02,183.96,22.22594358]
[1762138845458,0.1,184.03,183.98,3.20006839]
[1762138845859,0.1,184.03,183.99,0.68]
[1762138846083,0.1,184.03,183.99,3.88006839]
[1762138846580,0.1,184.03,184.0,0.68]
[1762138846979,0.1,184.03,184.01,5.43448725]
[1762138847657,3.30006839,184.03,184.01,5.43448725]
[1762138849263,0.1,184.03,184.01,5.43448725]
[1762138850159,0.1,184.03,184.02,0.68]
[1762138851190,0.1,184.03,184.02,6.11419193]
[1762138851369,3.30006839,184.03,184.02,5.43419193]
[1762138851683,0.1,184.03,184.02,5.43419193]
[1762138851883,3.30006839,184.03,184.02,5.43419193]
[1762138853389,3.30006839,184.03,184.0,19.02138888]
[1762138853566,3.20006839,184.02,184.0,19.02138888]
[1762138854184,3.20006839,184.02,184.0,19.70138888]
[1762138854889,0.1,184.03,184.0,19.70138888]
[1762138854890,3.30006839,184.03,184.0,19.70138888]
[1762138855100,0.1,184.03,184.01,0.68]
[1762138855297,3.30006839,184.03,184.0,19.02138888]
[1762138855606,3.30006839,184.03,184.0,19.70138888]
[1762138855985,0.1,184.03,184.01,0.68]
[1762138856866,0.1,184.03,184.02,5.43419193]
[1762138857272,0.1,184.03,184.02,6.11419193]
[1762138858292,0.1,184.03,184.02,5.43419193]
[1762138858472,3.30006839,184.03,184.02,5.43419193]
[1762138858866,20.592,184.02,183.97,13.58874954]
[1762138859080,3.20006839,183.98,183.97,13.58874954]
[1762138860211,20.592,183.97,183.94,5.43651163]
[1762138860375,3.20006839,183.95,183.94,5.43651163]
[1762138861011,3.90006839,183.95,183.92,5.43705104]
[1762138861299,24.49206839,183.94,183.93,15.18621063]
[1762138861595,24.49206839,183.94,183.93,9.74935966]
[1762138861798,23.79206839,183.94,183.93,9.74935966]
[1762138861972,23.79206839,183.94,183.93,15.18621063]
[1762138862591,20.592,183.94,183.93,15.18621063]
[1762138862801,23.79206839,183.94,183.93,9.74935966]
[1762138862997,24.49206839,183.94,183.93,9.74935966]
[1762138863294,84.28089608,183.94,183.93,9.74935966]
[1762138863994,84.28089608,183.94,183.84,13.59816521]
[1762138863995,20.592,183.88,183.84,13.59816521]
[1762138864201,3.20006839,183.85,183.84,19.03767782]
[1762138864411,7.87411391,183.86,183.84,19.71767782]
[1762138864892,7.87411391,183.86,183.84,19.03767782]
[1762138865194,20.592,183.88,183.84,13.59816521]
[1762138865493,7.87411391,183.85,183.83,5.43980851]
[1762138865694,7.87411391,183.84,183.83,5.43980851]
[1762138865872,8.57411391,183.84,183.8,5.6404571]
[1762138866079,20.592,183.86,183.8,5.6404571]
[1762138866080,7.87411391,183.81,183.8,5.6404571]
[1762138867276,7.87411391,183.81,183.8,0.2]
[1762138868374,7.87411391,183.81,183.8,5.6406964]
[1762138868782,7.87411391,183.81,183.8,0.2]
[1762138868783,8.57411391,183.81,183.8,0.2]
[1762138868985,8.57411391,183.81,183.8,5.6406964]
[1762138869199,20.592,183.82,183.8,5.6406964]
[1762138869504,7.87411391,183.81,183.8,5.6406964]
[1762138870073,20.592,183.82,183.8,19.96243742]
[1762138870313,13.60289322,183.91,183.81,8.59411391]
[1762138870314,7.87411391,183.87,183.81,8.59411391]
[1762138870476,50.0,183.92,183.83,7.87411391]
[1762138870679,7.87411391,183.91,183.86,7.87411391]
[1762138870876,7.87411391,183.91,183.84,0.72]
[1762138870877,7.87411391,183.88,183.84,0.72]
[1762138871108,7.87411391,183.88,183.85,19.03725863]
[1762138871292,0.7,183.9,183.85,26.91137254]
[1762138871293,7.87411391,183.9,183.85,26.91137254]
[1762138871495,7.87411391,183.89,183.86,0.72]
[1762138871793,7.87411391,183.87,183.81,5.44040041]
[1762138872000,7.87411391,183.82,183.81,5.44040041]
[1762138872380,7.87411391,183.82,183.81,19.04140144]
[1762138872580,7.87411391,183.82,183.81,5.44040041]
[1762138872906,20.592,183.84,183.81,5.44040041]
[1762138873201,7.87411391,183.82,183.81,5.44040041]
[1762138875083,7.87411391,183.83,183.81,18.04140144]
[1762138875278,7.87411391,183.82,183.81,18.04140144]
[1762138876006,7.87411391,183.82,183.81,4.44040041]
[1762138876397,28.46611391,183.82,183.81,4.44040041]
[1762138876707,29.16611391,183.82,183.81,4.44040041]
[1762138877105,28.46611391,183.82,183.81,4.44040041]
[1762138877597,29.16611391,183.82,183.81,4.44040041]
[1762138878000,28.46611391,183.82,183.81,4.44040041]
[1762138878794,29.16611391,183.82,183.81,4.44040041]
[1762138879118,29.16611391,183.82,183.8,0.2]
[1762138879319,7.87411391,183.81,183.8,0.2]
[1762138879816,20.592,183.82,183.8,5.6406964]
[1762138880019,7.87411391,183.81,183.8,5.6406964]
[1762138880522,7.87411391,183.81,183.8,0.2]
[1762138880718,8.57411391,183.81,183.8,0.2]
[1762138881028,8.57411391,183.81,183.8,5.6406964]
[1762138881313,7.87411391,183.81,183.8,5.6406964]
[1762138881512,8.57411391,183.81,183.8,0.2]
[1762138882025,8.57411391,183.81,183.8,5.6406964]
[1762138882319,5.92185542,183.81,183.8,5.6406964]
[1762138883129,5.92185542,183.81,183.8,0.2]
[1762138883603,70.93253853,183.81,183.8,0.2]
[1762138886192,76.37293894,183.81,183.8,0.2]
[1762138886395,50.0,183.77,183.75,0.2]
[1762138886608,5.22185542,183.76,183.75,0.2]
[1762138886814,107.32185542,183.76,183.75,0.2]
[1762138887401,107.32185542,183.76,183.75,5.64217687]
[1762138888011,107.32185542,183.76,183.75,0.2]
[1762138888210,117.81068311,183.76,183.75,0.2]
[1762138888527,15.71068311,183.76,183.75,0.2]
[1762138889221,21.15256382,183.76,183.75,0.2]
[1762138889542,15.71068311,183.76,183.75,0.2]
[1762138890006,17.89379131,183.76,183.75,0.2]
[1762138890398,50.0,183.75,183.74,0.2]
[1762138890608,55.92185542,183.75,183.74,0.2]
[1762138891411,65.71068311,183.75,183.74,0.2]
[1762138891716,65.01068311,183.75,183.74,0.2]
[1762138891915,50.0,183.77,183.74,6.36247305]
[1762138892118,50.0,183.77,183.76,5.44188071]
[1762138892920,2.18251261,183.82,183.76,5.44188071]
[1762138892921,2.0509367,183.83,183.76,21.81751919]
[1762138893122,52.0509367,183.84,183.78,2.0509367]
[1762138893422,2.0509367,183.85,183.79,0.72]
[1762138893733,2.0509367,183.85,183.8,2.0509367]
[1762138893734,20.592,183.84,183.8,2.0509367]
[1762138893910,20.592,183.84,183.81,0.72]
[1762138894106,2.0509367,183.83,183.79,19.04347352]
[1762138894324,5.21972839,183.83,183.8,0.72]
[1762138894831,20.592,183.84,183.8,0.72]
[1762138895014,5.21972839,183.85,183.8,0.72]
[1762138895601,25.81172839,183.85,183.8,0.72]
[1762138896017,5.21972839,183.84,183.8,0.72]
[1762138896409,5.21972839,183.84,183.81,19.04140144]
[1762138896806,5.21972839,183.84,183.81,19.73140144]
[1762138897001,20.592,183.85,183.81,19.73140144]
[1762138897240,20.592,183.85,183.82,0.69]
[1762138897540,25.81172839,183.85,183.82,0.69]
[1762138897737,25.81172839,183.85,183.81,19.04140144]
[1762138897924,5.21972839,183.84,183.81,19.04140144]
[1762138898105,5.21972839,183.83,183.81,19.04140144]
[1762138898507,5.21972839,183.83,183.81,14.29100103]
[1762138898707,5.21972839,183.84,183.81,14.29100103]
[1762138898932,107.31972839,183.84,183.81,14.29100103]
[1762138899236,102.1,183.84,183.82,0.69]
[1762138899421,102.1,183.84,183.81,14.29100103]
[1762138899811,102.1,183.84,183.82,0.69]
[1762138900214,102.1,183.84,183.8,0.69]
[1762138900215,5.21972839,183.83,183.8,0.69]
[1762138900528,5.21972839,183.83,183.81,5.44040041]
[1762138900941,20.592,183.78,183.76,6.13188071]
[1762138901109,5.21972839,183.77,183.76,5.44188071]
[1762138902515,5.21972839,183.77,183.75,5.44217687]
[1762138902846,5.21972839,183.76,183.75,5.44217687]
[1762138903036,5.21972839,183.77,183.75,19.73761904]
[1762138903241,5.21972839,183.76,183.74,0.2]
[1762138903411,25.81172839,183.75,183.74,0.2]
[1762138904527,25.81172839,183.75,183.74,5.64247305]
[1762138904714,25.81172839,183.75,183.74,0.2]
[1762138905241,25.81172839,183.75,183.74,5.64247305]
[1762138905420,85.60055608,183.75,183.74,0.2]
[1762138906017,80.38082769,183.75,183.74,0.2]
[1762138906337,85.60055608,183.75,183.74,0.2]
[1762138906723,86.31055608,183.75,183.74,0.2]
[1762138908242,50.0,183.72,183.71,0.2]
[1762138908537,65.00855608,183.72,183.71,0.2]
[1762138908740,60.49882769,183.72,183.71,0.2]
[1762138908955,65.00855608,183.72,183.71,0.2]
[1762138909150,59.78882769,183.72,183.71,0.2]
[1762138909344,65.00855608,183.72,183.71,5.64336182]
[1762138909717,65.71855608,183.72,183.71,0.2]
[1762138909917,65.00855608,183.72,183.71,0.2]
[1762138911221,65.71855608,183.72,183.71,0.2]
[1762138911550,65.00855608,183.72,183.71,0.2]
[1762138911844,59.78882769,183.72,183.71,0.2]
[1762138912043,5.21972839,183.72,183.71,5.64336182]
[1762138912242,20.592,183.72,183.71,5.64336182]
[1762138912427,25.81172839,183.72,183.71,5.64336182]
[1762138913052,85.60055608,183.72,183.71,5.64336182]
[1762138914053,25.81172839,183.72,183.71,5.64336182]
[1762138914424,20.592,183.72,183.71,5.64336182]
[1762138914622,20.592,183.73,183.71,5.64336182]
[1762138914850,5.21972839,183.72,183.71,5.64336182]
[1762138915541,25.81172839,183.73,183.71,6.33336182]
[1762138916736,5.21972839,183.72,183.71,6.33336182]
[1762138916924,5.21972839,183.72,183.71,5.64336182]
[1762138917126,5.21972839,183.72,183.71,0.2]
[1762138917351,5.21972839,183.72,183.71,5.64336182]
[1762138917746,20.592,183.73,183.71,5.64336182]
[1762138917944,5.21972839,183.74,183.72,0.69]
[1762138918344,20.592,183.72,183.71,5.64336182]
[1762138918551,25.81172839,183.72,183.71,5.64336182]
[1762138919452,25.81172839,183.72,183.71,6.33336182]
[1762138919756,20.592,183.73,183.71,6.33336182]
[1762138919938,20.592,183.73,183.72,0.69]
[1762138920853,20.592,183.73,183.72,6.13306553]
[1762138921552,0.71,183.78,183.72,19.74072936]
[1762138921553,50.0,183.78,183.72,19.74072936]
[1762138921756,10.56625927,183.85,183.72,19.74072936]
[1762138921757,50.0,183.8,183.74,5.21972839]
[1762138922053,102.1,183.77,183.75,5.21972839]
[1762138922255,0.71,183.86,183.73,0.69]
[1762138922256,5.21972839,183.85,183.76,5.90972839]
[1762138922456,4.48961801,183.93,183.76,5.90972839]
[1762138922457,2.04928769,183.86,183.81,2.04928769]
[1762138922629,20.592,183.85,183.8,2.04928769]
[1762138923029,20.592,183.85,183.81,19.73140144]
[1762138923347,2.04928769,183.86,183.81,21.78068913]
[1762138923542,50.0,183.88,183.83,2.04928769]
[1762138923543,2.04928769,183.88,183.83,2.04928769]
[1762138923742,12.58957128,183.96,183.81,19.04140144]
[1762138923743,2.04928769,183.91,183.85,2.04928769]
[1762138923966,2.04928769,183.92,183.86,2.04928769]
[1762138924129,20.592,183.91,183.86,2.04928769]
[1762138924333,5.21475673,183.91,183.87,0.69]
[1762138924526,50.0,183.94,183.81,46.2434035]
[1762138924527,5.21475673,183.89,183.81,46.2434035]
[1762138924852,5.21475673,183.84,183.82,0.69]
[1762138925028,5.21475673,183.85,183.83,5.43980851]
[1762138925227,5.21475673,183.85,183.83,19.0393298]
[1762138925423,5.21475673,183.85,183.83,19.7293298]
[1762138926946,5.21475673,183.85,183.83,6.12980851]
[1762138927352,25.80675673,183.86,183.84,0.72]
[1762138928653,25.80675673,183.86,183.85,5.43921675]
[1762138928862,25.80675673,183.86,183.84,0.72]
[1762138928863,25.80675673,183.86,183.84,5.43951071]
[1762138929470,5.21475673,183.85,183.84,5.43951071]
[1762138929660,25.80675673,183.86,183.84,6.15951071]
[1762138930472,5.21475673,183.85,183.84,6.15951071]
[1762138930676,20.592,183.84,183.82,5.43997155]
[1762138930979,5.21475673,183.83,183.82,5.43997155]
[1762138931489,102.1,183.83,183.8,5.44053526]
[1762138931654,5.21475673,183.81,183.8,5.44053526]
[1762138932254,5.21475673,183.82,183.8,6.16053526]
[1762138932902,5.21475673,183.82,183.8,19.76227628]
[1762138933081,107.31475673,183.83,183.81,0.72]
[1762138933257,102.1,183.83,183.81,0.72]
[1762138933858,102.1,183.83,183.8,5.44053526]
[1762138933859,20.592,183.81,183.8,5.44053526]
[1762138934278,25.80675673,183.81,183.8,5.44053526]
[1762138934657,25.80675673,183.81,183.79,5.44099243]
[1762138934861,5.21475673,183.8,183.79,5.44099243]
[1762138935669,5.21475673,183.8,183.78,6.16117031]
[1762138935856,5.21475673,183.8,183.78,5.44117031]
[1762138936062,20.592,183.81,183.79,0.72]
[1762138936063,25.80675673,183.81,183.79,0.72]
[1762138936468,20.592,183.81,183.79,0.72]
[1762138936855,20.592,183.81,183.8,5.4406964]
[1762138937285,20.592,183.81,183.8,6.1606964]
[1762138939266,102.1,183.83,183.8,24.97719415]
[1762138939461,102.1,183.83,183.81,0.72]
[1762138940677,107.31475673,183.83,183.81,0.72]
[1762138941081,107.31475673,183.83,183.82,5.44010445]
[1762138941471,102.1,183.83,183.82,5.44010445]
[1762138941673,102.1,183.83,183.82,6.16010445]
[1762138942886,102.1,183.83,183.82,5.44010445]
[1762138943084,109.9738229,183.83,183.77,19.04491928]
[1762138943390,109.9738229,183.83,183.78,0.72]
[1762138943886,102.1,183.83,183.8,7.8738229]
[1762138944068,28.4658229,183.86,183.8,7.8738229]
[1762138944278,20.592,183.86,183.81,0.72]
[1762138944475,28.4658229,183.86,183.81,0.72]
[1762138945293,28.4658229,183.86,183.82,19.04036557]
[1762138945803,7.8738229,183.85,183.82,19.72036557]
[1762138946017,20.592,183.86,183.83,0.68]
[1762138946176,102.1,183.88,183.86,7.8738229]
[1762138946505,102.1,183.88,183.83,0.68]
[1762138946791,7.8738229,183.84,183.82,19.04036557]
[1762138947176,7.8738229,183.85,183.82,19.72036557]
[1762138947388,7.8738229,183.85,183.83,0.68]
[1762138948709,7.8738229,183.85,183.82,19.04036557]
[1762138948992,130.5658229,183.88,183.83,0.68]
[1762138949370,130.5658229,183.88,183.84,19.03829415]
[1762138949589,130.5658229,183.88,183.84,19.71829415]
[1762138949801,122.692,183.88,183.84,19.03829415]
[1762138950001,122.692,183.88,183.84,19.71829415]
[1762138950177,122.692,183.88,183.84,19.03829415]
[1762138950178,130.5658229,183.88,183.84,19.03829415]
[1762138950502,130.5658229,183.88,183.84,19.71829415]
[1762138952198,7.8738229,183.93,183.87,7.8738229]
[1762138952499,109.9738229,183.94,183.88,7.8738229]
[1762138952703,7.8738229,183.94,183.89,0.68]
[1762138952905,0.66,183.95,183.89,0.68]
[1762138953081,7.8738229,183.94,183.89,0.68]
[1762138953607,50.0,183.98,183.89,8.5538229]
[1762138953905,7.8738229,183.94,183.89,0.68]
[1762138954075,7.8738229,183.94,183.9,19.03208265]
[1762138954271,102.76,183.97,183.9,19.03208265]
[1762138954480,7.8738229,183.95,183.9,19.71208265]
[1762138954683,20.592,183.94,183.9,19.71208265]
[1762138954890,20.592,183.94,183.91,0.68]
[1762138955725,28.4658229,183.94,183.91,0.68]
[1762138955875,102.1,183.97,183.92,0.7]
[1762138956082,102.1,183.97,183.93,5.43685097]
[1762138956083,130.5658229,183.97,183.93,5.43685097]
[1762138956292,7.8738229,183.96,183.93,5.43685097]
[1762138956508,7.8738229,183.96,183.93,19.0289784]
[1762138956672,7.8738229,183.95,183.93,19.0289784]
[1762138956877,7.8738229,183.95,183.9,27.8886895]
[1762138956878,7.8738229,183.94,183.91,5.43731989]
[1762138957073,7.8738229,183.93,183.91,5.43731989]
[1762138957292,7.8738229,183.94,183.91,19.03092545]
[1762138958101,7.8738229,183.94,183.91,13.59360556]
[1762138958301,7.8738229,183.93,183.91,13.59360556]
[1762138958873,0.66,183.96,183.84,6.13951261]
[1762138958874,8.5338229,183.92,183.84,6.13951261]
[1762138959103,7.8738229,183.86,183.84,5.43951261]
[1762138959310,7.8738229,183.85,183.84,5.43951261]
[1762138960112,7.8738229,183.85,183.82,19.03991324]
[1762138960309,7.8738229,183.85,183.82,19.73991324]
[1762138960513,7.8738229,183.83,183.82,5.44010445]
[1762138961010,20.592,183.81,183.8,5.44044742]
[1762138961211,28.4658229,183.81,183.8,5.44044742]
[1762138962010,20.592,183.8,183.76,19.04641635]
[1762138962525,7.8738229,183.79,183.76,19.74641635]
[1762138962835,7.8738229,183.77,183.74,5.44247305]
[1762138963042,7.8738229,183.75,183.72,5.4428745]
[1762138963195,7.8738229,183.74,183.72,5.4428745]
[1762138963390,81.04082769,183.77,183.72,5.4428745]
[1762138963589,7.8738229,183.74,183.72,5.4428745]
[1762138963819,7.8738229,183.73,183.72,5.4428745]
[1762138964026,21.252,183.74,183.72,5.4428745]
[1762138964198,7.8738229,183.73,183.72,5.4428745]
[1762138964611,7.8738229,183.73,183.71,0.2]
[1762138965126,21.252,183.74,183.71,5.64318419]
[1762138965330,21.252,183.74,183.72,0.7]
[1762138965331,20.592,183.74,183.72,0.7]
[1762138965624,70.592,183.77,183.72,0.7]
[1762138965798,78.4658229,183.77,183.72,0.7]
[1762138966316,78.4658229,183.77,183.73,19.04969248]
[1762138967120,70.592,183.77,183.73,19.74969248]
[1762138967414,29.1258229,183.77,183.73,19.04969248]
[1762138967619,7.8738229,183.76,183.73,19.04969248]
[1762138968119,7.8738229,183.74,183.73,5.44276928]
[1762138968420,7.8738229,183.74,183.72,5.44306553]
[1762138968607,71.252,183.77,183.72,5.44306553]
[1762138968804,7.8738229,183.74,183.72,19.05072936]
[1762138969112,7.8738229,183.74,183.72,5.44306553]
[1762138971595,70.592,183.77,183.72,19.05072936]
[1762138971800,28.4658229,183.77,183.73,0.7]
[1762138972014,28.43863791,183.77,183.73,0.7]
[1762138972211,9.78882769,183.75,183.72,5.44306553]
[1762138972407,67.66265059,183.75,183.72,5.44306553]
[1762138972799,7.8738229,183.74,183.72,5.44306553]
[1762138973606,102.1,183.73,183.72,5.44306553]
[1762138975026,102.1,183.73,183.72,6.14306553]
[1762138979324,102.1,183.76,183.72,27.62455226]
[1762138979525,102.1,183.76,183.73,8.5738229]
[1762138979904,102.1,183.76,183.74,0.7]
[1762138980105,102.1,183.76,183.74,8.5738229]
[1762138980304,102.1,183.76,183.74,0.7]
[1762138980831,7.8738229,183.75,183.72,19.05072936]
[1762138981130,7.8738229,183.73,183.72,5.44306553]
[1762138982307,7.8738229,183.73,183.71,0.2]
[1762138982308,102.76,183.76,183.71,5.64330436]
[1762138982508,7.8738229,183.72,183.71,5.64330436]
[1762138984633,7.8738229,183.75,183.71,19.95170891]
[1762138984928,102.1,183.76,183.74,7.8738229]
[1762138985131,102.1,183.76,183.72,8.5738229]
[1762138985310,102.1,183.76,183.72,0.7]
[1762138985634,102.1,183.76,183.73,0.7]
[1762138985930,102.1,183.76,183.74,7.8738229]
[1762138986335,102.1,183.76,183.71,46.46851801]
[1762138986336,7.8738229,183.83,183.76,19.04658249]
[1762138986535,50.0,183.86,183.78,7.8738229]
[1762138986728,81.9635916,183.87,183.79,8.5538229]
[1762138986729,7.8738229,183.85,183.79,8.5538229]
[1762138986910,67.69556725,183.87,183.79,8.5538229]
[1762138986911,7.8738229,183.87,183.81,7.8738229]
[1762138987113,50.0,183.89,183.8,0.68]
[1762138987114,7.8738229,183.85,183.8,0.68]
[1762138987420,20.592,183.88,183.76,46.25598605]
[1762138987421,7.8738229,183.82,183.77,0.68]
[1762138988234,7.8738229,183.83,183.77,0.68]
[1762138988536,7.8738229,183.8,183.78,5.44128849]
[1762138988726,7.8738229,183.79,183.78,5.44128849]
[1762138989111,7.8738229,183.79,183.76,5.44161666]
[1762138989112,8.5838229,183.79,183.76,5.44161666]
[1762138989306,8.5838229,183.78,183.76,5.44161666]
[1762138989737,7.8738229,183.77,183.76,5.44161666]
[1762138990336,28.4658229,183.78,183.76,5.44161666]
[1762138990539,28.4658229,183.78,183.74,13.60604792]
[1762138990850,7.8738229,183.77,183.74,13.60604792]
[1762138991058,20.592,183.78,183.73,5.44276928]
[1762138991355,7.8738229,183.76,183.73,19.04969248]
[1762138991522,20.592,183.78,183.74,0.68]
[1762138991912,20.592,183.8,183.75,7.8738229]
[1762138992123,20.592,183.79,183.76,7.8738229]
[1762138992548,67.69556725,183.82,183.77,27.59936895]
[1762138992727,67.69556725,183.82,183.79,7.8738229]
[1762138992920,67.69556725,183.82,183.8,7.8738229]
[1762138993121,67.69556725,183.82,183.78,0.68]
[1762138994229,67.69556725,183.82,183.78,8.5538229]
[1762138994434,67.69556725,183.82,183.81,5.44040041]
[1762138994833,67.69556725,183.82,183.81,6.12040041]
[1762138995345,67.69556725,183.82,183.81,5.44040041]
[1762138995539,67.69556725,183.82,183.81,6.12040041]
[1762138995922,67.69556725,183.82,183.81,5.44040041]
[1762138996442,67.69556725,183.82,183.81,6.12040041]
[1762138997142,7.8738229,183.85,183.81,19.72140144]
[1762138998143,67.69556725,183.84,183.81,19.04140144]
[1762138998419,96.16139015,183.88,183.82,8.5538229]
[1762138998644,67.69556725,183.87,183.83,19.0393298]
[1762138998840,67.69556725,183.87,183.83,19.7193298]
[1762138999043,75.56939015,183.87,183.83,19.7193298]
[1762138999253,75.56939015,183.87,183.83,19.0393298]
[1762138999544,75.56939015,183.87,183.83,19.7193298]
[1762138999743,75.56939015,183.87,183.84,0.68]
[1762138999957,7.8738229,183.86,183.83,19.0393298]
[1762139000716,7.8738229,183.86,183.83,13.59952129]
[1762139001723,75.56939015,183.87,183.83,13.59952129]
[1762139002236,76.27939015,183.87,183.83,13.59952129]
[1762139002432,76.27939015,183.87,183.84,0.68]
[1762139002433,75.56939015,183.87,183.84,0.68]
[1762139002638,75.56939015,183.87,183.83,19.0393298]
[1762139002829,75.56939015,183.87,183.83,19.7193298]
[1762139003525,75.56939015,183.87,183.83,19.0393298]
[1762139004127,75.56939015,183.87,183.83,19.7193298]
[1762139004327,72.91304084,183.87,183.83,19.7193298]
[1762139004636,5.21747359,183.86,183.82,5.44010445]
[1762139004838,5.92747359,183.86,183.82,5.44010445]
[1762139005038,5.21747359,183.85,183.82,5.44010445]
[1762139005955,67.69556725,183.84,183.82,13.60026112]
[1762139008055,67.69556725,183.84,183.83,0.7]
[1762139008253,67.69556725,183.84,183.83,5.91747359]
[1762139008548,25.28508374,183.89,183.83,5.91747359]
[1762139008752,5.21747359,183.94,183.88,5.21747359]
[1762139008941,5.21747359,183.94,183.84,0.7]
[1762139008942,5.21747359,183.94,183.9,19.03208265]
[1762139009139,25.80947359,183.94,183.9,19.03208265]
[1762139009346,5.21747359,183.92,183.9,19.03208265]
[1762139010141,5.91747359,183.91,183.9,5.4377379]
[1762139010350,5.91747359,183.91,183.88,5.43826226]
[1762139010535,5.21747359,183.89,183.85,13.59800458]
[1762139010736,5.21747359,183.87,183.85,13.59800458]
[1762139011052,35.07391143,183.92,183.83,19.0393298]
[1762139011053,5.91747359,183.86,183.83,19.0393298]
[1762139011254,5.21747359,183.84,183.83,19.0393298]
[1762139011440,5.21747359,183.84,183.8,13.60154064]
[1762139011640,5.21747359,183.82,183.81,5.44040041]
[1762139012048,5.21747359,183.83,183.81,5.44040041]
[1762139012641,5.21747359,183.83,183.8,19.04223704]
[1762139013046,5.21747359,183.82,183.77,0.7]
[1762139013259,5.21747359,183.82,183.78,0.7]
[1762139013761,20.592,183.81,183.76,0.7]
[1762139014059,26.50947359,183.81,183.76,0.7]
[1762139014234,21.292,183.81,183.76,0.7]
[1762139014439,5.21747359,183.79,183.76,0.7]
[1762139014668,5.21747359,183.79,183.74,52.17849457]
[1762139014854,21.292,183.81,183.75,0.7]
[1762139015039,5.21747359,183.77,183.74,19.04865569]
[1762139015542,5.21747359,183.77,183.74,19.74865569]
[1762139016564,5.21747359,183.79,183.74,19.74865569]
[1762139016968,5.21747359,183.78,183.74,19.74865569]
[1762139018667,35.77391143,183.8,183.74,19.04865569]
[1762139018668,5.21747359,183.77,183.74,19.04865569]
[1762139019963,5.21747359,183.77,183.74,13.60618264]
[1762139020171,5.21747359,183.77,183.74,14.32618264]
[1762139020672,5.21747359,183.77,183.74,13.60618264]
[1762139020968,9.78882769,183.78,183.74,13.60618264]
[1762139021270,9.78882769,183.78,183.72,5.44306553]
[1762139021271,5.21747359,183.75,183.72,5.44306553]
[1762139021467,0.71,183.77,183.72,5.44306553]
[1762139021468,5.21747359,183.73,183.72,5.44306553]
[1762139023274,5.21747359,183.75,183.72,19.77072936]
[1762139023486,15.00630128,183.76,183.72,19.05072936]
[1762139023647,5.21747359,183.74,183.72,19.05072936]
[1762139023852,5.21747359,183.73,183.72,19.05072936]
[1762139024365,25.28508374,183.76,183.72,24.98820295]
[1762139024676,30.50255733,183.76,183.72,19.77072936]
[1762139024967,25.28508374,183.76,183.72,19.05072936]
[1762139025173,25.28508374,183.76,183.73,0.72]
[1762139026873,25.28508374,183.76,183.74,5.44247305]
[1762139027071,5.21747359,183.75,183.74,5.44247305]
[1762139027571,30.50255733,183.76,183.74,5.44247305]
[1762139028256,5.92747359,183.75,183.74,5.44247305]
[1762139028854,5.92747359,183.75,183.73,5.44274308]
[1762139029174,5.92747359,183.74,183.72,5.44306553]
[1762139029380,30.50255733,183.73,183.72,5.44306553]
[1762139029761,25.28508374,183.73,183.72,5.44306553]
[1762139030280,80.38082769,183.64,183.62,0.2]
[1762139030459,5.21747359,183.63,183.62,0.2]
[1762139030772,25.80947359,183.63,183.62,5.64602984]
[1762139030949,5.21747359,183.66,183.62,6.36602984]
[1762139031149,5.21747359,183.66,183.63,0.72]
[1762139031367,25.80947359,183.66,183.63,0.72]
[1762139032253,20.592,183.66,183.63,0.72]
[1762139032454,25.80947359,183.66,183.63,0.72]
[1762139033178,25.80947359,183.66,183.62,19.26110445]
[1762139033375,5.21747359,183.64,183.62,19.98110445]
[1762139034080,20.592,183.66,183.62,19.98110445]
[1762139034259,5.21747359,183.64,183.62,19.98110445]
[1762139034579,5.21747359,183.65,183.62,19.98110445]
[1762139034773,20.592,183.66,183.63,0.72]
[1762139034975,5.21747359,183.65,183.63,0.72]
[1762139035167,30.50255733,183.65,183.62,19.26110445]
[1762139035359,30.50255733,183.65,183.62,19.98110445]
[1762139035559,5.21747359,183.64,183.62,19.98110445]
[1762139035761,30.50255733,183.65,183.64,5.44543672]
[1762139037991,30.50255733,183.65,183.63,5.44573326]
[1762139038169,5.21747359,183.64,183.63,5.44573326]
[1762139038579,25.28508374,183.65,183.63,5.44573326]
[1762139038770,25.80947359,183.66,183.64,0.72]